Cogmind - Beta 17.1 @@@ ROGUE MODE // 2026.08.31 @ 21:38:50 Player: Limbermonkey Result: Destroyed by L-31 Rogue with Katana Performance ------------- Evolutions (2) 1000 Regions Visited (3) 600 Robots Destroyed (38) 190 Value Destroyed (939) 939 Prototype IDs (2) 40 Alien Tech Used (0) 0 Bonus (0) 0 TOTAL SCORE: 2769 Bonus ------- None Cogmind --------- Core Integrity 0/550 Matter 237/300 Energy 57/100 System Corruption 0% Temperature Warm (112) Movement Core (300) Ox5 Location -8/Materials Parts ------- > --- POWER (1) -------- (None) > --- PROPULSION (4) --- (None) > --- UTILITY (4) ------ Medium Storage Unit > --- WEAPON (2) ------- Advanced EMP Blaster > --- INVENTORY (10) --- Light Ion Engine Heavy Ion Engine Flight Unit Seismic Detector Seismic Detector Transport Network Coupler Peak State ------------ > --- POWER ------------ Heavy Ion Engine > --- PROPULSION ------- Light Treads Light Treads Light Treads Light Treads > --- UTILITY ---------- Small Storage Unit Improved Terrain Scanner Seismic Detector > --- WEAPON ----------- Heavy Assault Rifle High-powered Shotgun > --- INVENTORY -------- Light Ion Engine Wheel Flight Unit Flight Unit Seismic Detector Assault Rifle Shock Bomb Launcher [Rating: 17] Favorites ----------- Power Ion Engine Engine Ion Engine Propulsion Light Treads Treads Light Treads Leg Aluminum Leg Wheel Wheel Flight Unit Flight Unit Utility Small Storage Unit Device Seismic Detector Storage Small Storage Unit Protection Light Armor Plating Weapon Assault Rifle Ballistic Gun Assault Rifle Launcher Shock Bomb Launcher Special Weapon Mining Laser Build | -11 -10 -9 -8 ------- Run | Yrd Mat Mat Mat Slots Evolved 4 | . . 2 2 Power . | . . . . Propulsion 2 | . . 1 1 Utility 2 | . . 1 1 Weapon . | . . . . Parts Attached 34 | 1 6 9 18 Power 4 | . 1 2 1 Engine 4 | . 1 2 1 Core . | . . . . Reactor . | . . . . Propulsion 15 | . 2 6 7 Treads 4 | . . . 4 Leg . | . . . . Wheel 3 | . 2 . 1 Hover . | . . . . Flight 8 | . . 6 2 Utility 7 | 1 2 1 3 Device 5 | 1 2 1 1 Storage 1 | . . . 1 Processor . | . . . . Hackware . | . . . . Protection 1 | . . . 1 Artifact . | . . . . Weapon 8 | . 1 . 7 Energy Gun . | . . . . Energy Cannon . | . . . . Ballistic Gun 4 | . 1 . 3 Ballistic Cannon . | . . . . Launcher 3 | . . . 3 Special Weapon 1 | . . . 1 Impact Weapon . | . . . . Slashing Weapon . | . . . . Piercing Weapon . | . . . . Special Melee Weapon . | . . . . Unidentified Prototypes 2 | . . . 2 Parts Lost 30 | . 4 2 24 Power 4 | . 1 1 2 Propulsion 13 | . 1 1 11 Utility 5 | . 1 . 4 Weapon 8 | . 1 . 7 Highest Loss Streak 14 | . 3 1 14 To Critical Strikes . | . . . . Average Backups 6 | 6 6 5 6 Power 1 | 1 2 1 1 Propulsion 2 | 4 2 1 2 Utility 1 | . . 1 1 Weapon 1 | 1 1 1 1 Tool/Special . | . . . . Unused Backups 6 | . 1 2 3 Power 1 | . . . 1 Propulsion 5 | . 1 2 2 Utility . | . . . . Weapon . | . . . . Tool/Special . | . . . . Average Slot Usage (%) 80 | . 89 87 73 Engine 10 | . 12 11 8 Treads 9 | . . . 18 Leg 4 | . 14 . . Wheel 6 | . 13 17 . Flight 4 | . . 5 7 Device 10 | . 5 20 10 Storage 10 | . 14 11 8 Protection 2 | . . . 4 Ballistic Gun 17 | . 28 22 11 Special Weapon 1 | . . . 3 Peak Build Rating 17 | 7 7 12 17 Average Rating 9 | 6 6 8 11 On Entrance 7 | 6 7 6 11 Avg Prop Armor Cover (%) 7 | . . . 7 Naked Turns . | . . . . Heaviest Build 22 | 15 15 15 22 Greatest Support 80 | 20 20 20 80 Greatest Overweight (x) 6 | . . 1 6 Average Overweight (x) . | . . . . Largest Inventory Capacity 10 | 8 8 8 10 Average Capacity 7 | 8 8 8 7 Most Carried 8 | 8 8 8 8 Average Carried 6 | 6 6 5 6 Final Capacity 10 | 8 8 8 10 Final Carried 8 | 8 8 8 6 Class Distribution -------------------- 55% | Mutant 33% | Scavenger-Mutant 10% | Sprinter Dominant Class ---------------- Mutant | -10/Materials Mutant | -9/Materials Scavenger-Mutant | -8/Materials Resources | -11 -10 -9 -8 ----------- Run | Yrd Mat Mat Mat Matter Collected 991 | 276 226 62 427 Remotely . | . . . . Salvage Created 1338 | 162 361 62 753 Parts 88 | 5 25 6 52 Haulers Intercepted 1 | . . . 1 Recyclers Shooed 1 | . . . 1 Parts Field Recycled . | . . . . Retrieved Matter . | . . . . Parts Self-Destructed . | . . . . Prevented . | . . . . Parts Restored . | . . . . Kills | -11 -10 -9 -8 ------- Run | Yrd Mat Mat Mat Combat Hostiles Destroyed 29 | . 10 4 15 Guns 26 | . 10 4 12 AOE 3 | . . . 3 Classes Destroyed 8 | 3 2 . 3 Worker 5 | 2 1 1 1 Tunneler 1 | 1 . . . Hauler 1 | . . . 1 Recycler 2 | 1 . . 1 Swarmer 10 | . 3 4 3 Grunt 13 | . 7 . 6 Sentry 5 | . . . 5 Hunter 1 | . . . 1 Best Kill Streak 8 | 3 5 5 8 Combat Bots Only 5 | . 5 4 5 Max Kills in Single Turn 4 | 1 2 1 4 Gunslinging 1 | . 1 . . Exploded 2 | . . . 2 Melee . | . . . . Uniques/NPCs Destroyed . | . . . . Combat | -11 -10 -9 -8 -------- Run | Yrd Mat Mat Mat Hostile Shots Fired 321 | . 73 50 198 Missed 84 | . 14 13 57 Hits 237 | . 59 37 141 Melee 10 | . . . 10 Projectile 227 | . 59 37 131 Critical Strikes 11 | . 1 . 10 Damage Taken 2978 | . 643 296 2039 Core 795 | . 145 94 556 Absorbed by Shields . | . . . . Core Remaining (%) 72 | 100 42 76 . Volleys Fired 130 | 11 38 10 71 Largest 2 | 2 2 2 2 Hottest 100 | 40 40 40 100 Shots Fired 211 | 22 76 20 93 Gun 199 | 22 76 20 81 Cannon . | . . . . Launcher 2 | . . . 2 Special 10 | . . . 10 Kinetic 199 | 22 76 20 81 Thermal 10 | . . . 10 Explosive . | . . . . Electromagnetic 2 | . . . 2 Robot Hit Streak 14 | 5 12 2 14 Robot Miss Streak 3 | 2 3 3 3 Penetration Max . | . . . . Secondary Targets 4 | . 1 2 1 Max Gunslinging Chain 1 | . 1 1 1 Shots Hit Robots 138 | 14 54 8 62 Core Hits 65 | 5 20 5 35 Critical Kills 1 | . . . 1 Critical Parts Destroyed 2 | 1 . . 1 Critical Strikes 3 | 1 . . 2 Destroy 3 | 1 . . 2 Melee Attacks . | . . . . Impact . | . . . . Slashing . | . . . . Piercing . | . . . . Sneak Attacks . | . . . . Combat Hostiles . | . . . . Follow-up Attacks . | . . . . Damage Inflicted 2016 | 170 641 115 1090 Guns 1803 | 170 641 115 877 Cannons . | . . . . Explosions 197 | . . . 197 Melee . | . . . . Ramming 16 | . . . 16 Kinetic 1803 | 170 641 115 877 Thermal 26 | . . . 26 Explosive . | . . . . Electromagnetic 171 | . . . 171 Impact . | . . . . Slashing . | . . . . Piercing . | . . . . Highest Corruption . | . . . . Average Corruption . | . . . . Corruption Purged . | . . . . Corruption Blocked . | . . . . Overload Shots . | . . . . Overflow Damage . | . . . . Projectiles . | . . . . Explosions . | . . . . Melee . | . . . . Knockbacks . | . . . . Impact . | . . . . Kinetic . | . . . . Secondary . | . . . . Self-Inflicted Damage 7 | . . . 7 Shots . | . . . . Rammed 4 | . . . 4 Targets Rammed 4 | . . . 4 Kicked . | . . . . Crushed . | . . . . Highest Temperature 439 | . 18 . 439 Average Temperature 41 | . 6 . 57 Received Heat Transfer 1068 | . 339 . 729 Siege Activations . | . . . . Martial Activations . | . . . . Shielding Activations . | . . . . Robots Disrupted . | . . . . Combat Hostiles . | . . . . Robots Corrupted . | . . . . Combat Hostiles . | . . . . Parts Fried . | . . . . Impact Corruptions . | . . . . Robots Melted . | . . . . Combat Hostiles . | . . . . Parts Melted . | . . . . Heat Transferred 100 | . . . 100 Parts Sabotaged . | . . . . Parts Stolen . | . . . . Parts Stripped . | . . . . Power Chain Reactions 2 | . . . 2 Alert | -11 -10 -9 -8 ------- Run | Yrd Mat Mat Mat Maximum Alert Level . | . . . . Low Security (%) 100 | 100 100 100 100 Level 1 . | . . . . Level 2 . | . . . . Level 3 . | . . . . Level 4 . | . . . . Level 5 . | . . . . High Security . | . . . . Max Security . | . . . . Peak Influence 144 | 10 86 90 144 Initial 33 | . . 27 33 Average 51 | 1 51 30 69 Influence Increases 923 | 20 256 135 512 Destroy 0b10 Robot/C 580 | . 200 80 300 Destroy 0b10 Robot/NC 45 | 20 5 5 15 Destroy Leader 132 | . 40 10 82 Successful Hack 32 | . 11 10 11 Destroy Structure 14 | . . . 14 Partial Spotted 30 | . . . 30 Lose Combat Pursuer 90 | . . 30 60 Influence Decreases 891 | 20 190 121 560 Entered New Map 86 | . . 39 47 Time Decay 506 | 20 150 62 274 Lost Part 299 | . 40 20 239 Squads Dispatched 4 | . 2 . 2 Investigation . | . . . . Extermination . | . . . . Reinforcement 4 | . 2 . 2 Assault . | . . . . Garrison . | . . . . Intercept . | . . . . Searches Triggered . | . . . . Construction Impeded . | . . . . Haulers Reinforced . | . . . . Active Scanning Responses . | . . . . Cargo Convoy Interrupts . | . . . . Stealth | -11 -10 -9 -8 --------- Run | Yrd Mat Mat Mat Distress Signals 5 | . 2 . 3 Communications Jammed . | . . . . Distress Signals . | . . . . Times Spotted 52 | . 14 7 31 Peak Tracking Total 9 | . 5 4 9 Tactical Retreats 4 | . . 2 2 Traps | -11 -10 -9 -8 ------- Run | Yrd Mat Mat Mat Traps Triggered . | . . . . Indirectly . | . . . . Trap Hack Attempts . | . . . . Triggered . | . . . . Disarmed . | . . . . Reprogrammed . | . . . . Reused . | . . . . Traps Extracted . | . . . . Installed . | . . . . Triggered . | . . . . Machines | -11 -10 -9 -8 ---------- Run | Yrd Mat Mat Mat Machines Disabled . | . . . . Max in Single Turn . | . . . . Machines Repaired . | . . . . Machines Dismantled . | . . . . Machines Sabotaged . | . . . . Overloaded Fab Kills . | . . . . Hacking | -11 -10 -9 -8 --------- Run | Yrd Mat Mat Mat Machines Accessed 10 | . 3 1 6 Terminals 9 | . 3 1 5 Fabricators . | . . . . Repair Stations . | . . . . Recycling Units . | . . . . Scanalyzers 1 | . . . 1 Garrison Access . | . . . . Total Hacks 30 | . 9 5 16 Successful 10 | . 2 2 6 Failed 19 | . 7 3 9 Catastrophic 3 | . 1 1 1 Database Lockouts 1 | . . . 1 Manual 28 | . 8 5 15 Terminals 29 | . 9 5 15 Fabricators . | . . . . Repair Stations . | . . . . Recycling Units . | . . . . Scanalyzers 1 | . . . 1 Garrison Access . | . . . . Terminal Hacks 3 | . 1 1 1 Part Schematic 1 | . . . 1 Terminal Index 1 | . 1 . . Zone Layout 1 | . . 1 . Fabricator Hacks . | . . . . Repair Station Hacks . | . . . . Recycling Unit Hacks . | . . . . Scanalyzer . | . . . . Garrison Access Hacks . | . . . . Unauthorized Hacks 7 | . 1 1 5 Terminals 7 | . 1 1 5 Botnet 7 | . 1 1 5 Fabricators . | . . . . Repair Stations . | . . . . Recycling Units . | . . . . Scanalyzers . | . . . . Garrison Access . | . . . . Data Cores Recovered . | . . . . Used . | . . . . Hacking Detections 8 | . 2 1 5 Full Trace Events . | . . . . Feedback Events . | . . . . Feedback Blocked . | . . . . Robot Schematics Acquired . | . . . . Robots Built . | . . . . Authchips . | . . . . Time . | . . . . Total Robot Build Rating . | . . . . Part Schematics Acquired 1 | . . . 1 Parts Built . | . . . . Authchips . | . . . . Time . | . . . . Total Part Build Rating . | . . . . Part Studies Acquired . | . . . . Parts Repaired . | . . . . Time . | . . . . Parts Recycled . | . . . . Recycled Matter . | . . . . Retrieved Matter . | . . . . Retrieved Components . | . . . . Parts Scanalyzed . | . . . . Part Schematics Acquired . | . . . . Parts Damaged . | . . . . Bothacking | -11 -10 -9 -8 ------------ Run | Yrd Mat Mat Mat Used RIF Installer . | . . . . Robots Hacked . | . . . . Non-combat . | . . . . Combat . | . . . . Robot Hacks Applied . | . . . . Relay Couplers Released . | . . . . Fabnet Peak Effective % . | . . . . Robots Rewired . | . . . . Allies Hacked . | . . . . Hacks Repelled . | . . . . Allies | -11 -10 -9 -8 -------- Run | Yrd Mat Mat Mat Total Allies . | . . . . Largest Group . | . . . . Highest-Rated Group . | . . . . Highest-Rated Ally . | . . . . Total Orders . | . . . . Ally Attacks . | . . . . Total Damage . | . . . . Kills . | . . . . Allies Corrupted . | . . . . Allies Melted . | . . . . Intel | -11 -10 -9 -8 ------- Run | Yrd Mat Mat Mat Active Infowar (turns) 879 | 13 127 175 564 Sensors 319 | . 10 169 140 Terrain 179 | . . . 179 Seismic 701 | 13 117 156 415 Robot Analysis Total . | . . . . Derelict Logs Recovered . | . . . . Drone Launches . | . . . . Drone Recoveries . | . . . . Exploration | -11 -10 -9 -8 ------------- Run | Yrd Mat Mat Mat Turns Passed 1251 | 147 324 175 605 Spaces Moved 742 | 38 186 172 346 Core 9 | . . . 9 Treads 166 | . . . 166 Legs 99 | 38 61 . . Wheels 261 | . 125 126 10 Hover . | . . . . Flight 207 | . . 46 161 Fastest Speed 29 | 120 80 29 29 Average Speed 93 | 120 93 69 102 Slowest Speed 350 | 120 120 122 350 Overloaded Moves . | . . . . Propulsion Burnouts . | . . . . Robots Hopped 3 | . . . 3 Potential Cave-ins 7 | . . . 7 Cave-ins Triggered . | . . . . Exploration Rate (%) 23 | 4 41 20 30 Regions Visited 3 Branch Regions . Pre-discovered Areas . | . . . . Known Exits Taken . | . . . . Unknown Exits Taken 3 | 1 1 1 . Scrap Searched . | . . . . Spaces Dug 10 | . . . 10 Terrain Destroyed 18 | . . . 18 Melee . | . . . . Projectile 10 | . . . 10 AOE 8 | . . . 8 Terrain Rammed . | . . . . Walls Destroyed . | . . . . Machines Disabled . | . . . . Actions | -11 -10 -9 -8 --------- Run | Yrd Mat Mat Mat Total 1069 | 117 265 210 477 Wait 119 | 66 27 7 19 Move 733 | 37 185 171 340 Hop 3 | . . . 3 Pick Up 13 | 2 4 3 4 Fast Attach 19 | 1 2 1 15 Attach 19 | . 3 6 10 Detach 10 | . 2 3 5 Swap 9 | . 1 5 3 Drop 10 | . 3 4 3 Fire 130 | 11 38 10 71 Melee . | . . . . Ram 4 | . . . 4 Kick . | . . . . Crush . | . . . . Escape Stasis . | . . . . Rewire . | . . . . Trap . | . . . . Miscellaneous . | . . . . Route ------- -11/Scrapyard -10/Materials -9/Materials -8/Materials History --------- Turn | Location | Event 22 | -11/Scrapyard | Discovered new exit (range 3) 148 | -11/Scrapyard | Entered Materials 307 | -10/Materials | Build established: Mutant 333 | -10/Materials | Lost 3 parts (1p1n1w) 391 | -10/Materials | Core integrity fell below 50% 418 | -10/Materials | Discovered new exit (range 13) 472 | -10/Materials | Entered another Materials area 472 | -9/Materials | Evolved 2 slots: Propulsion x1, Utility x1 565 | -9/Materials | Discovered new exit (range 13) 647 | -9/Materials | Entered another Materials area 647 | -8/Materials | Evolved 2 slots: Propulsion x1, Utility x1 725 | -8/Materials | Lost 5 parts (1p2n2w) 821 | -8/Materials | Lost 5 parts (1p3n1u) 909 | -8/Materials | Central database locked down 1106 | -8/Materials | Build established: Scavenger-Mutant 1196 | -8/Materials | Core integrity fell below 50% 1244 | -8/Materials | Core integrity fell below 20% 1252 | -8/Materials | Destroyed by L-31 Rogue with Katana Last Messages --------------- 01241_ U-05 Engineer lays Concrete. 01241_ Acquired Com. Wheel. 01242_ U-05 Engineer lays Concrete. 01244_ K-01 Serf collects debris. 01244_ U-05 Engineer lays Concrete. 01245_ Acquired Med. Storage Unit. 01245_ U-05 Engineer lays Concrete. 01245_ Imp. Terrain Scanner destroyed. 01245_ U-05 Engineer lays Concrete. 01246_ U-05 Engineer builds a Wall. 01247_ K-01 Serf collects debris. 01247_ U-05 Engineer lays Concrete. 01247_ Acquired Transport Network Coupler. 01247_ Com. Wheel destroyed. 01248_ U-05 Engineer lays Concrete. 01250_ U-05 Engineer builds a Wall. 01250_ U-05 Engineer lays Concrete. 01250_ Acquired Adv. EMP Blaster. 01250_ K-01 Serf collects debris. 01252_ U-05 Engineer lays Concrete. Map ----- +----------------------------------------------------+ | ?????????????????????????????????????????????????? | | ?????????????????????????????????????????????????? | | ?????????????????????????????????????????????????? | | ?????????????????????????????????????????????????? | | ?????????????????????????????????????????????????? | | ?????????????????????????????????????????????????? | | ????????????????? ???????????????????????????????? | | ???????????????????????? ??????????????????????? | | ???????????????????????? /????? ???????????????? | | ???????????????#???????# #?????????????????????? | | ????????????#????#?????# #?????????#???????????? | | ????????#?????????????## ##??#+????#???????????? | | ????????????##????????# #??? ???# ####???????? | | ??????#?????????#??#??# #??? ?# #????????# | | ??????????##??????????# ##?# ## #????????? | | ?????????#????????#???# #??# ## #?#??????? | | ????????????????#?????? #?## #?"" !!?????????? | | ??????????????########## #??## #?"Y ! ?????##### | | ??????????????# # #???# #??" ???????# | | ??????????????# =# #???# ## ?####### "" | | ?????????#??#?# =* #[*k##### ####/### # "" | | ???????#??#???# =#=[ r # "" | | ????????#?????# !*+%=*= T + | | ??????????????# !#u*!! # | | ?????????#????# =#gu=###+########## # | | ??????#???????# ]#a@u;## ???#???## #### | | ???????#????#?# ;l ]### ??????# #??#### | | ???????#??????##########w #?#! #?#???# #?#???? | | ?????????????? ????????# #?# #?????# #?????# | | ???????#?#?????????????# #?# """ #?????# ####### | | ?????????#?#? ????????## #?# """ / | | ???????????#????"?????? ?# """ ##????#+####### | | ????????????????? ? ?? # #?????????????? | | ??????????????? ?????? # "???#?????????????? | | ???????????????????? ? T / "???#?????????????? | | ????????????#??????? # # "??????#???????#### | | ?????????????????????# # ????#??#????? + | | ?????????????????????# #/#??????????? ??#### | | ?????????????????#???### ##### ??????????????#?# | | ???????????????????????# ????? ????????????????# " | | ???????????????????????? ??????????????????????# T | | ???????????????????????? ??????????????????????# " | | ???????????????????????? ??????????????????????# | | ???????????????????????????????????????????????# | | ???????????????????????????????????????????????# | | ???????????????????????????????????????????????### | | ?????????????????????????????????????????????????? | | ?????????????????????????????????????????????????? | | ?????????????????????????????????????????????????? | | ?????????????????????????????????????????????????? | +----------------------------------------------------+ Best States ------------- Heat Dissipation 31 Energy Generation 14 Energy Capacity 280 Matter Stores 300 Matter Capacity 300 Sight Range 16 Robot Scan Range 14 Terrain Scan Range 16 Terrain Scan Density 10 Armor Coverage 150 Evasion (%) 64 Recoil Reduction 4 Item Schematics ----------------- Signal Interpreter | -8/Materials | Hacked Robot Schematics ------------------ None Fabricated ------------ Nothing Repaired ---------- Nothing Studied --------- None Alien Tech Used ----------------- None Achievements -------------- None Challenges ------------ None Game ------ Seed ConstructPlatingMatrix Manual? 0 Play Time 00:27:53 Cumulative 40.4 hours Start 2026.08.31 @ 21:11:41 End 2026.08.31 @ 21:38:50 Sessions 1 Manual Loads 0 Difficulty Rogue Special Mode None Game No. 32 Rogue 10 Adventurer 22 Explorer 0 Win Type - Total 0 Types 0/0/0/0/0/0/0/0/0/0 Lore% 17 Gallery% 26 Achievement% 20 Wizard Run 0 Options --------- Layout 1 ASCII 1 Keyboard 1 Movement Numpad Keybinds 0 Fullscreen 1 Font 48/Smallcaps Map View 50x35 Zoom Use 0% Tactical HUD 1 Map Filters NONE Filters NONE Steam 1 RUN: 2499d1f0-b0cd-4fcf-8235-042a6466ea26